lending/lending_fUSD_20240510
["ID","MTS","AMOUNT","RATE_DAILY","PERIOD"]
[326751134,1715308238530,-186.07677469,0.00012999,2]
[326751135,1715308238541,-5743.55265254,0.00012999,2]
[326751136,1715308238552,-117.73874512,0.00012999,2]
[326751137,1715308238562,-532.2630107,0.00013,2]
[326751138,1715308238573,-0.7369893,0.00013,2]
[326751139,1715308238584,-308.31504308,0.00013,2]
[326751140,1715308238595,-351.13088306,0.00013,2]
[326751141,1715308238606,-3232.3,0.00013,2]
[326751142,1715308238618,-112308.953858,0.00013,2]
[326751143,1715308238629,-27561.82820925,0.00013,2]
[326751144,1715308238729,-633.8742985,0.00013,2]
[326751145,1715308238740,-946.67592046,0.00013,2]
[326751146,1715308238752,-835.11710452,0.00013,2]
[326751147,1715308238763,-23171.24287949,0.00013,2]
[326751148,1715308238775,-580.55516096,0.00013,2]
[326751149,1715308238786,-439.45564214,0.00013,2]
[326751157,1715308240131,-98835.71008123,0.00013,2]
[326751158,1715308240141,-1000.0,0.00013,2]
[326751159,1715308240152,-2198078.61445751,0.00013,2]
[326751160,1715308240162,-931757.86043572,0.00013,2]
[326751161,1715308240172,-10745.0769049,0.00013004,2]
[326751162,1715308240182,-511.6674833,0.00013004,2]
[326751163,1715308240193,-3440.2135775,0.00013013,2]
[326751164,1715308240203,-240.41,0.0001304,2]
[326751165,1715308240214,-160.18,0.00013425,2]
[326751166,1715308240225,-161.0,0.00013425,2]
[326751167,1715308240235,-1007.03705232,0.00013698,2]
[326751168,1715308240246,-200.0,0.00013699,2]
[326751169,1715308240257,-200.0,0.00013699,2]
[326751170,1715308240267,-435.940509,0.00013699,2]
[326751171,1715308240276,-200.0,0.00013699,2]
[326751172,1715308240287,-200.0,0.00013699,2]
[326751173,1715308240298,-200.0,0.00013699,2]
[326751174,1715308240308,-200.0,0.00013699,2]
[326751175,1715308240318,-526.59,0.00013877,2]
[326751176,1715308240328,-1000.0,0.00014,2]
[326751177,1715308240339,-586.69,0.00014127,2]
[326751178,1715308240351,-155.69,0.00014341,2]
[326751179,1715308240361,-4842.67019929,0.00014478,2]
[326751180,1715308240372,-240.41,0.0001467,2]
[326751181,1715308240382,-526.59,0.00015419,2]
[326751182,1715308240391,-586.69,0.00015697,2]
[326751183,1715308240401,-4842.67019929,0.00016055,2]
[326751184,1715308240411,-240.41,0.000163,2]
[326751185,1715308240422,-155.69,0.0001639,2]
[326751186,1715308240432,-40000.0,0.0001688,2]
[326751187,1715308240441,-151.0,0.0001688,2]
[326751188,1715308240451,-151.0,0.0001688,2]
[326751189,1715308240465,-151.0,0.0001688,2]
[326751190,1715308240475,-151.0,0.0001688,2]
[326751191,1715308240485,-151.0,0.0001688,2]
[326751192,1715308240494,-172.808744,0.0001688,2]
[326751193,1715308240506,-151.0,0.0001688,2]
[326751194,1715308240516,-220.677229,0.0001688,2]
[326751195,1715308240526,-151.0,0.0001688,2]
[326751196,1715308240535,-151.0,0.0001688,2]
[326751197,1715308240550,-151.0,0.0001688,2]
[326751198,1715308240560,-153.29864,0.0001688,2]
[326751199,1715308240570,-151.0,0.0001688,2]
[326751200,1715308240580,-151.0,0.0001688,2]
[326751201,1715308240590,-151.0,0.0001688,2]
[326751202,1715308240600,-151.0,0.0001688,2]
[326751203,1715308240610,-151.0,0.0001688,2]
[326751204,1715308240620,-151.0,0.0001688,2]
[326751205,1715308240630,-151.0,0.0001688,2]
[326751206,1715308240640,-151.0,0.0001688,2]
[326751207,1715308240650,-421.40234,0.0001688,2]
[326751208,1715308240671,-151.0,0.0001688,2]
[326751209,1715308240685,-421.40234,0.0001688,2]
[326751210,1715308240696,-151.0,0.0001688,2]
[326751211,1715308240706,-151.0,0.0001688,2]
[326751212,1715308240717,-151.0,0.0001688,2]
[326751213,1715308240727,-151.0,0.0001688,2]
[326751214,1715308240737,-214.8145,0.0001688,2]
[326751215,1715308240748,-526.59,0.00016961,2]
[326751216,1715308240758,-586.69,0.00017267,2]
[326751217,1715308240768,-151.0,0.00017633,2]
[326751218,1715308240779,-151.0,0.00017633,2]
[326751219,1715308240789,-151.0,0.00017633,2]
[326751220,1715308240800,-151.0,0.00017633,2]
[326751221,1715308240810,-151.0,0.00017633,2]
[326751222,1715308240821,-151.0,0.00017633,2]
[326751223,1715308240831,-151.0,0.00017633,2]
[326751224,1715308240842,-151.0,0.00017633,2]
[326751225,1715308240852,-151.0,0.00017633,2]
[326751226,1715308240862,-151.0,0.00017633,2]
[326751227,1715308240872,-151.0,0.00017633,2]
[326751228,1715308240882,-159.24984,0.00017633,2]
[326751229,1715308240892,-151.0,0.00017633,2]
[326751230,1715308240903,-151.0,0.00017633,2]
[326751231,1715308240913,-151.0,0.00017633,2]
[326751232,1715308240923,-1605.29187,0.00017633,2]
[326751233,1715308240933,-1605.29187,0.00017633,2]
[326751234,1715308240943,-151.0,0.00017633,2]
[326751235,1715308240953,-332.020287,0.00017633,2]
[326751236,1715308240963,-151.0,0.00017633,2]
[326751237,1715308240974,-332.020287,0.00017633,2]
[326751238,1715308240984,-151.0,0.00017633,2]
[326751239,1715308240994,-4842.67019929,0.00017633,2]
[326751240,1715308241004,-154.20115106,0.0001788,2]
[326751241,1715308241014,-178.95748439,0.0001788,2]
[326751242,1715308241024,-189.58,0.00017902,2]
[326751243,1715308241034,-151.0,0.0001793,2]
[326751244,1715308241045,-151.0,0.0001793,2]
[326751245,1715308241055,-290.314,0.0001793,2]
[326751246,1715308241065,-151.0,0.0001793,2]
[326751247,1715308241075,-151.0,0.0001793,2]
[326751248,1715308241085,-290.314,0.0001793,2]
[326751249,1715308241095,-151.0,0.0001793,2]
[326751250,1715308241106,-151.0,0.0001793,2]
[326751251,1715308241116,-387.066836,0.0001793,2]
[326751252,1715308241126,-387.066836,0.0001793,2]
[326751253,1715308241137,-151.0,0.0001793,2]
[326751254,1715308241147,-151.0,0.0001793,2]
[326751255,1715308241157,-151.0,0.0001793,2]
[326751256,1715308241166,-151.0,0.0001793,2]
[326751257,1715308241177,-240.41,0.0001793,2]
[326751258,1715308241187,-178.16386,0.00017997,2]
[326751259,1715308241197,-155.69,0.00018438,2]
[326751260,1715308241207,-526.59,0.00018503,2]
[326751261,1715308241218,-203.98,0.00018789,2]
[326751262,1715308241229,-586.69,0.00018836,2]
[326751263,1715308241239,-23397.71134823,0.00019,5]
[326751264,1715308241250,-151.0,0.00019,2]
[326751265,1715308241261,-151.0,0.00019,2]
[326751266,1715308241271,-151.0,0.00019,2]
[326751267,1715308241281,-151.0,0.00019,2]
[326751268,1715308241291,-151.0,0.00019,2]
[326751269,1715308241301,-204.136703,0.00019,2]
[326751270,1715308241311,-151.0,0.00019,2]
[326751271,1715308241321,-314.853181,0.00019,2]
[326751272,1715308241332,-314.853181,0.00019,2]
[326751273,1715308241342,-151.0,0.00019,2]
[326751274,1715308241352,-151.0,0.00019,2]
[326751275,1715308241362,-151.0,0.00019,2]
[326751276,1715308241372,-151.0,0.00019,2]
[326751277,1715308241382,-151.0,0.00019,2]
[326751278,1715308241392,-291.671736,0.00019,2]
[326751279,1715308241402,-291.671736,0.00019,2]
[326751280,1715308241412,-151.0,0.00019,2]
[326751281,1715308241423,-151.0,0.00019,2]
[326751282,1715308241433,-310.396917,0.00019,2]
[326751283,1715308241443,-310.396917,0.00019,2]
[326751284,1715308241453,-151.0,0.00019,2]
[326751285,1715308241467,-151.0,0.00019,2]
[326751286,1715308241477,-151.0,0.00019,2]
[326751287,1715308241487,-470.649487,0.00019,2]
[326751288,1715308241499,-165.36498,0.00019,2]
[326751289,1715308241509,-470.649487,0.00019,2]
[326751290,1715308241519,-158.94509,0.00019,2]
[326751291,1715308241529,-151.0,0.00019,2]
[326751292,1715308241540,-151.0,0.00019,2]
[326751293,1715308241551,-151.0,0.00019,2]
[326751294,1715308241560,-292.071132,0.00019,2]
[326751295,1715308241570,-292.071132,0.00019,2]
[326751296,1715308241580,-151.0,0.00019,2]
[326751297,1715308241590,-151.0,0.00019,2]
[326751298,1715308241599,-151.0,0.00019,2]
[326751299,1715308241609,-345.371905,0.00019,2]
[326751300,1715308241620,-345.371905,0.00019,2]
[326751301,1715308241630,-564.71348894,0.00019098,3]
[326751302,1715308241639,-564.71348894,0.00019098,3]
[326751303,1715308241649,-162.13,0.00019178,2]
[326751304,1715308241659,-170.57,0.00019178,2]
[326751305,1715308241669,-156.62,0.00019178,2]
[326751306,1715308241679,-153.62,0.00019178,2]
[326751307,1715308241875,-151.0,0.00019178,2]
[326751308,1715308241885,-181.881273,0.00019178,2]
[326751309,1715308241895,-181.881273,0.00019178,2]
[326751310,1715308241906,-687.47,0.000192,2]
[326751311,1715308241917,-351.04,0.000192,2]
[326751312,1715308241929,-617.08,0.000192,2]
[326751313,1715308241939,-4842.67019929,0.00019211,2]
[326751314,1715308241949,-240.41,0.0001956,2]
[326751315,1715308241959,-710.77629314,0.0002,2]
[326751316,1715308241969,-343.0,0.0002,2]
[326751317,1715308241979,-302.76838686,0.0002,2]
[326751318,1715308241990,-635.140135,0.0002,2]
[326751319,1715308242000,-152.83602201,0.00020601,2]
[326751320,1715308242010,-152.83602201,0.00020613,2]
[326751321,1715308242020,-152.83602201,0.00020719,2]
[326751322,1715308242030,-165.11469392,0.00020784,2]
[326751323,1715308242040,-4842.67019929,0.00020789,2]
[326751324,1715308242050,-151.0,0.00020789,2]
[326751325,1715308242060,-151.0,0.00020789,2]
[326751326,1715308242070,-185.561694,0.00020789,2]
[326751327,1715308242080,-185.561694,0.00020789,2]
[326751328,1715308242089,-151.0,0.00020789,2]
[326751329,1715308242099,-151.0,0.00020789,2]
[326751330,1715308242109,-151.0,0.00020789,2]
[326751331,1715308242119,-151.0,0.00020789,2]
[326751332,1715308242129,-151.0,0.00020789,2]
[326751333,1715308242139,-151.0,0.00020789,2]
[326751334,1715308242148,-540.0,0.000208,3]
[326751335,1715308242158,-1606.0,0.000209,3]
[326751336,1715308242168,-2316.00761272,0.00021195,2]
[326751337,1715308242178,-456.70657194,0.00021195,2]
[326751338,1715308242188,-1595.79487124,0.00021195,2]
[326751339,1715308242197,-178.95748439,0.000214,2]
[326751340,1715308242206,-152.83602201,0.0002144,2]
[326751341,1715308242216,-250.53533565,0.00021472,2]
[326751342,1715308242225,-617.08,0.000217,2]
[326751343,1715308242234,-250.0,0.00021918,2]
[326751344,1715308242244,-157.249736,0.00021918,2]
[326751345,1715308242253,-152.83602201,0.00021961,2]
[326751346,1715308242263,-155.06630626,0.0002198,2]
[326751347,1715308242273,-687.47,0.000221,2]
[326751348,1715308242283,-351.04,0.000221,2]
[326751349,1715308242293,-4842.67019929,0.00022366,2]
[326751350,1715308242303,-1103.33259888,0.000225,2]
[326751351,1715308242312,-470.0,0.000228,2]
[326751352,1715308242322,-154.57283396,0.00022981,2]
[326751353,1715308242332,-155.45142787,0.00023186,2]
[326751354,1715308242341,-155.45142787,0.00023213,2]
[326751355,1715308242350,-414.71,0.00023288,2]
[326751356,1715308242360,-154.57283396,0.00023336,2]
[326751357,1715308242369,-166.66666665,0.00023366,2]
[326751358,1715308242379,-160.66587819,0.00023386,2]
[326751359,1715308242389,-1000.0,0.000234,2]
[326751360,1715308242398,-250.53533565,0.00023647,2]
[326751361,1715308242408,-154.57283396,0.00023742,2]
[326751362,1715308242417,-414.85,0.00023836,2]
[326751363,1715308242431,-414.85,0.00023836,2]
[326751364,1715308242440,-617.08,0.000239,2]
[326751365,1715308242450,-4842.67019929,0.00023944,2]
[326751366,1715308242463,-153.21247533,0.00023979,2]
[326751367,1715308242473,-160.66587819,0.00023985,2]
[326751368,1715308242483,-160.66587819,0.00023997,2]
[326751369,1715308242492,-1000.0,0.00024,2]
[326751370,1715308242502,-1000.0,0.00024,2]
[326751371,1715308242511,-1000.0,0.00024,2]
[326751372,1715308242521,-1004.0,0.00024,2]
[326751373,1715308242530,-1310.0,0.00024,2]
[326751374,1715308242542,-1000.0,0.00024,2]
[326751375,1715308242551,-1203.0,0.00024,2]
[326751376,1715308242561,-868.27,0.00024055,2]
[326751377,1715308242570,-868.27,0.00024055,2]
[326751378,1715308242580,-868.27,0.00024055,2]
[326751379,1715308242590,-868.27,0.00024055,2]
[326751380,1715308242599,-868.27,0.00024055,2]
[326751381,1715308242609,-868.27,0.00024055,2]
[326751382,1715308242619,-414.85,0.00024055,2]
[326751383,1715308242628,-868.27,0.00024055,2]
[326751384,1715308242638,-414.85,0.00024055,2]
[326751385,1715308242648,-882.33,0.00024055,2]
[326751386,1715308242658,-414.85,0.00024055,2]
[326751387,1715308242668,-300.0,0.00024055,2]
[326751388,1715308242681,-1000.0,0.000241,2]
[326751389,1715308242691,-1000.0,0.000241,2]
[326751390,1715308242702,-152.0,0.00024222,3]
[326751391,1715308242712,-163.60886973,0.00024264,2]
[326751392,1715308242722,-250.53533565,0.00024344,2]
[326751393,1715308242732,-687.47,0.000244,2]
[326751394,1715308242741,-351.04,0.000244,2]
[326751395,1715308242750,-155.06630626,0.00024512,2]
[326751396,1715308242760,-413.9,0.0002474,2]
[326751397,1715308242770,-414.85,0.0002474,2]
[326751398,1715308242780,-414.85,0.0002474,2]
[326751399,1715308242790,-414.85,0.0002474,2]
[326751400,1715308242800,-414.85,0.0002474,2]
[326751401,1715308242810,-414.85,0.0002474,2]
[326751402,1715308242819,-414.85,0.0002474,2]
[326751403,1715308242830,-827.32,0.0002474,2]
[326751404,1715308242839,-150.0,0.00024757,2]
[326751405,1715308242849,-250.53533565,0.00024815,2]
[326751406,1715308242860,-154.57283396,0.0002491,2]
[326751407,1715308242870,-414.85,0.00024932,2]
[326751408,1715308242880,-421.72,0.00024932,2]
[326751409,1715308242890,-414.85,0.00024932,2]
[326751410,1715308242900,-414.85,0.00024932,2]
[326751411,1715308242910,-414.85,0.00024932,2]
[326751412,1715308242920,-305.7,0.00024932,2]
[326751413,1715308242931,-357.16,0.00024932,2]
[326751414,1715308242941,-161.98788862,0.00024934,2]
[326751415,1715308242951,-150.0,0.00024948,2]
[326751416,1715308242960,-351.14,0.00024948,2]
[326751418,1715308242971,-1046.1,0.00024948,2]
[326751420,1715308242981,-7129.52373221,0.00025,2]
[326751421,1715308242990,-560.75051181,0.00025,7]
[326751423,1715308243000,-152.010685,0.00025,7]
[326751424,1715308243010,-151.0,0.00025,7]
[326751425,1715308243020,-421.40234,0.00025,7]
[326751426,1715308243030,-151.0,0.00025,7]
[326751427,1715308243039,-421.40234,0.00025,7]
[326751428,1715308243049,-151.0,0.00025,7]
[326751429,1715308243058,-151.0,0.00025,7]
[326751430,1715308243068,-181.881273,0.00025,7]
[326751431,1715308243077,-181.881273,0.00025,7]
[326751432,1715308243087,-151.0,0.00025,7]
[326751433,1715308243096,-151.0,0.00025,7]
[326751434,1715308243107,-414.85,0.00025014,2]
[326751435,1715308243117,-868.27,0.00025014,2]
[326751436,1715308243127,-868.27,0.00025014,2]
[326751437,1715308243136,-1573.98,0.00025014,2]
[326751438,1715308243145,-152.83602201,0.00025027,2]
[326751439,1715308243155,-155.80167397,0.0002509,120]
[326751440,1715308243165,-152.0,0.00025094,4]
[326751441,1715308243175,-698.63,0.00025205,2]
[326751442,1715308243184,-325.66,0.00025205,2]
[326751443,1715308243194,-351.25,0.00025205,2]
[326751444,1715308243203,-1046.1,0.00025205,2]
[326751445,1715308243212,-351.25,0.00025205,2]
[326751446,1715308243221,-152.83602201,0.00025371,2]
[326751447,1715308243231,-151.0,0.000254,7]
[326751448,1715308243240,-151.0,0.000254,7]
[326751449,1715308243250,-151.0,0.000254,7]
[326751450,1715308243259,-151.0,0.000254,7]
[326751451,1715308243269,-151.0,0.000254,7]
[326751452,1715308243279,-151.0,0.000254,7]
[326751453,1715308243288,-151.0,0.000254,7]
[326751454,1715308243297,-151.0,0.000254,7]
[326751455,1715308243306,-151.0,0.000254,7]
[326751456,1715308243315,-169.417777,0.000254,7]
[326751457,1715308243323,-151.0,0.000254,7]
[326751458,1715308243332,-171.708075,0.000254,7]
[326751459,1715308243341,-151.0,0.000254,7]
[326751460,1715308243350,-151.0,0.000254,7]
[326751461,1715308243359,-151.0,0.000254,7]
[326751462,1715308243368,-151.0,0.000254,7]
[326751463,1715308243377,-202.679223,0.000254,7]
[326751464,1715308243386,-151.0,0.000254,7]
[326751465,1715308243395,-1605.29187,0.000254,7]
[326751466,1715308243404,-1605.29187,0.000254,7]
[326751467,1715308243413,-151.0,0.000254,7]
[326751468,1715308243423,-332.020287,0.000254,7]
[326751469,1715308243432,-151.0,0.000254,7]
[326751470,1715308243441,-332.020287,0.000254,7]
[326751471,1715308243451,-153.8363,0.000254,7]
[326751472,1715308243464,-150.0,0.000254,4]
[326751473,1715308243474,-151.0,0.000255,7]
[326751474,1715308243483,-151.0,0.000255,7]
[326751475,1715308243492,-151.0,0.000255,7]
[326751476,1715308243502,-151.0,0.000255,7]
[326751477,1715308243511,-151.0,0.000255,7]
[326751478,1715308243520,-151.0,0.000255,7]
[326751479,1715308243529,-151.0,0.000255,7]
[326751480,1715308243539,-151.0,0.000255,7]
[326751481,1715308243548,-290.314,0.000255,7]
[326751482,1715308243558,-151.0,0.000255,7]
[326751483,1715308243568,-151.0,0.000255,7]
[326751484,1715308243577,-290.314,0.000255,7]
[326751485,1715308243586,-151.0,0.000255,7]
[326751486,1715308243595,-151.821043,0.000255,7]
[326751487,1715308243604,-387.066836,0.000255,7]
[326751488,1715308243613,-387.066836,0.000255,7]
[326751489,1715308243623,-151.0,0.000255,7]
[326751490,1715308243632,-151.0,0.000255,7]
[326751491,1715308243641,-151.0,0.000255,7]
[326751492,1715308243650,-151.0,0.000255,7]
[326751493,1715308243659,-4842.67019929,0.00025522,2]
[326751494,1715308243668,-151.0,0.00025522,7]
[326751495,1715308243678,-152.04574,0.00025522,7]
[326751496,1715308243687,-151.0,0.00025522,7]
[326751497,1715308243697,-617.08,0.000256,2]
[326751498,1715308243706,-152.83602201,0.00025655,2]
[326751499,1715308243715,-155.14433206,0.00025691,2]
[326751500,1715308243726,-351.25,0.00025753,2]
[326751501,1715308243736,-351.25,0.00025753,2]
[326751502,1715308243746,-351.25,0.00025753,2]
[326751503,1715308243755,-152.83602201,0.00025799,2]
[326751504,1715308243766,-160.66587819,0.00025819,2]
[326751505,1715308243775,-197.65,0.0002589,2]
[326751506,1715308243784,-150.0,0.000259,4]
[326751507,1715308243794,-438.5,0.00025922,2]
[326751508,1715308243804,-414.85,0.00025922,2]
[326751509,1715308243815,-414.71,0.00025922,2]
[326751510,1715308243824,-152.0,0.00025966,5]
[326751511,1715308243833,-151.0,0.00025973,7]
[326751512,1715308243843,-151.0,0.00025973,7]
[326751513,1715308243853,-183.91,0.00026027,2]
[326751514,1715308243862,-163.60886975,0.00026143,2]
[326751515,1715308243871,-151.0,0.00026197,7]
[326751516,1715308243881,-151.0,0.00026197,7]
[326751517,1715308243890,-153.980355,0.00026197,7]
[326751518,1715308243899,-154.874852,0.00026197,7]
[326751519,1715308243908,-151.0,0.00026197,7]
[326751520,1715308243917,-151.0,0.00026197,7]
[326751521,1715308243928,-314.853181,0.00026197,7]
[326751522,1715308243937,-314.853181,0.00026197,7]
[326751523,1715308243946,-151.0,0.00026197,7]
[326751524,1715308243955,-151.0,0.00026197,7]
[326751525,1715308243965,-151.0,0.00026197,7]
[326751526,1715308243974,-291.671736,0.00026197,7]
[326751527,1715308243984,-291.671736,0.00026197,7]
[326751528,1715308243993,-310.396917,0.00026197,7]
[326751529,1715308244002,-310.396917,0.00026197,7]
[326751530,1715308244012,-250.53533565,0.00026235,2]
[326751531,1715308244023,-440.439,0.00026327,2]
[326751532,1715308244031,-893.935,0.00026327,2]
[326751533,1715308244042,-614.318,0.00026327,2]
[326751534,1715308244052,-423.198,0.00026327,2]
[326751535,1715308244061,-196.268,0.00026327,2]
[326751536,1715308244070,-150.44,0.00026327,2]
[326751537,1715308244079,-1483.432,0.00026327,2]
[326751538,1715308244089,-2412.0,0.00026327,2]
[326751539,1715308244099,-150.512,0.00026327,2]
[326751540,1715308244107,-216.0,0.00026327,2]
[326751541,1715308244116,-445.942,0.00026327,2]
[326751542,1715308244125,-1135.129,0.00026327,2]
[326751543,1715308244134,-1652.15,0.00026327,2]
[326751544,1715308244143,-3168.167,0.00026327,2]
[326751545,1715308244152,-152.043935,0.00026327,7]
[326751546,1715308244162,-151.0,0.00026327,7]
[326751547,1715308244172,-151.0,0.00026327,7]
[326751548,1715308244181,-151.0,0.00026327,7]
[326751549,1715308244191,-151.0,0.00026327,7]
[326751550,1715308244200,-151.0,0.00026327,7]
[326751551,1715308244211,-151.0,0.00026327,7]
[326751552,1715308244220,-470.649487,0.00026327,7]
[326751553,1715308244231,-470.649487,0.00026327,7]
[326751554,1715308244240,-151.0,0.00026327,7]
[326751555,1715308244249,-173.390309,0.00026327,7]
[326751556,1715308244258,-151.0,0.00026327,7]
[326751557,1715308244267,-292.071132,0.00026327,7]
[326751558,1715308244277,-292.071132,0.00026327,7]
[326751559,1715308244286,-151.0,0.00026327,7]
[326751560,1715308244295,-151.0,0.00026327,7]
[326751561,1715308244304,-186.441778,0.00026327,7]
[326751562,1715308244313,-345.371905,0.00026327,7]
[326751563,1715308244322,-345.371905,0.00026327,7]
[326751564,1715308244331,-151.0,0.00026327,7]
[326751565,1715308244342,-151.0,0.00026327,7]
[326751566,1715308244352,-185.561694,0.00026327,7]
[326751567,1715308244362,-185.561694,0.00026327,7]
[326751568,1715308244371,-151.0,0.00026327,7]
[326751569,1715308244380,-151.0,0.00026327,7]
[326751570,1715308244389,-151.0,0.00026327,7]
[326751571,1715308244398,-151.0,0.00026327,7]
[326751572,1715308244408,-151.0,0.00026327,7]
[326751573,1715308244417,-151.0,0.00026327,7]
[326751574,1715308244427,-5909.0,0.00026327,2]
[326751575,1715308244436,-975.77,0.00026327,2]
[326751576,1715308244445,-5762.988,0.00026327,2]
[326751577,1715308244455,-37947.181,0.00026327,2]
[326751578,1715308244468,-289.234,0.00026327,2]
[326751579,1715308244477,-1530.748,0.00026327,2]
[326751580,1715308244486,-1530.748,0.00026327,2]
[326751581,1715308244494,-1402.897,0.00026327,2]
[326751582,1715308244504,-250.53533565,0.00026335,2]
[326751583,1715308244513,-156.18766555,0.00026343,2]
[326751584,1715308244522,-718.46,0.00026384,2]
[326751585,1715308244531,-463.34,0.00026384,2]
[326751586,1715308244542,-150.0,0.000264,5]
[326751587,1715308244552,-155.45142787,0.000265,2]
[326751588,1715308244561,-687.47,0.000266,2]
[326751589,1715308244570,-351.04,0.000266,2]
[326751590,1715308244579,-442.52,0.00026658,2]
[326751591,1715308244588,-419.95,0.00026658,2]
[326751592,1715308244598,-163.21,0.00026658,2]
[326751593,1715308244607,-155.98,0.00026658,2]
[326751594,1715308244616,-150.67,0.00026658,2]
[326751595,1715308244625,-701.64,0.00026658,2]
[326751596,1715308244635,-150.0,0.00026658,2]
[326751597,1715308244644,-150.0,0.00026658,2]
[326751598,1715308244652,-163.21,0.00026658,2]
[326751599,1715308244662,-150.0,0.00026658,2]
[326751600,1715308244670,-150.0,0.00026658,2]
[326751601,1715308244679,-163.21,0.00026658,2]
[326751602,1715308244689,-150.0,0.00026658,2]
[326751603,1715308244698,-163.21,0.00026658,2]
[326751604,1715308244707,-151.0,0.00026658,7]
[326751605,1715308244716,-421.40234,0.00026658,7]
[326751606,1715308244727,-152.383609,0.00026658,7]
[326751607,1715308244737,-421.40234,0.00026658,7]
[326751608,1715308244746,-151.0,0.00026658,7]
[326751609,1715308244755,-161.98788862,0.000267,2]
[326751610,1715308244764,-161.98788862,0.00026802,2]
[326751611,1715308244773,-152.0,0.00026838,6]
[326751612,1715308244782,-150.0,0.000269,5]
[326751613,1715308244791,-250.53533565,0.00026971,2]
[326751614,1715308244800,-541.82478963,0.00027,5]
[326751615,1715308244809,-155.58206812,0.00027,4]
[326751616,1715308244817,-150.0,0.00027,2]
[326751617,1715308244826,-151.0,0.00027,7]
[326751618,1715308244835,-181.881273,0.00027,7]
[326751619,1715308244845,-181.881273,0.00027,7]
[326751620,1715308244854,-151.0,0.00027,7]
[326751621,1715308244863,-151.0,0.00027,7]
[326751622,1715308244872,-4842.67019929,0.000271,2]
[326751623,1715308244881,-160.66587819,0.00027355,2]
[326751624,1715308244890,-237.67561534,0.00027395,10]
[326751625,1715308244899,-151.0,0.00027397,7]
[326751626,1715308244908,-151.0,0.00027397,7]
[326751627,1715308244918,-151.0,0.00027397,7]
[326751628,1715308244928,-151.0,0.00027397,7]
[326751629,1715308244938,-151.0,0.00027397,7]
[326751630,1715308244947,-151.0,0.00027397,7]
[326751631,1715308244956,-301.847368,0.00027397,7]
[326751632,1715308244965,-447.41632298,0.00027397,4]
[326751633,1715308244974,-151.0,0.00027397,7]
[326751634,1715308244983,-151.0,0.00027397,7]
[326751635,1715308244992,-151.0,0.00027397,7]
[326751636,1715308245002,-151.0,0.00027397,7]
[326751637,1715308245011,-151.0,0.00027397,7]
[326751638,1715308245020,-154.261182,0.00027397,7]
[326751639,1715308245029,-500.0,0.00027397,4]
[326751640,1715308245038,-156.38013662,0.00027397,4]
[326751641,1715308245048,-500.0,0.00027397,4]
[326751642,1715308245057,-647.29,0.00027397,4]
[326751643,1715308245066,-500.0,0.00027397,4]